[Event "Late-Titled-Tuesday-Blitz-April-16-2024"]
[Site "Chess.com"]
[Date "2024.04.16"]
[Round "1"]
[White "TheCount"]
[Black "N_I_Chess"]
[Result "0-1"]
[WhiteElo "2663"]
[BlackElo "2384"]
[TimeControl "180+1"]
[EndTime "14:08:46 PDT"]
[Termination "N_I_Chess won by checkmate"]

1. d4 {[%clk 0:02:57.1]} 1... Nf6 {[%clk 0:02:46.7]} 2. c4 {[%clk 0:02:56.8]}
2... e6 {[%clk 0:02:46.6]} 3. Nf3 {[%clk 0:02:56.6]} 3... Bb4+ {[%clk
0:02:44.1]} 4. Nbd2 {[%clk 0:02:56.3]} 4... O-O {[%clk 0:02:42.1]} 5. a3 {[%clk
0:02:56.7]} 5... Bxd2+ {[%clk 0:02:41.4]} 6. Qxd2 {[%clk 0:02:57.6]} 6... d6
{[%clk 0:02:34.1]} 7. Qc2 {[%clk 0:02:57.2]} 7... Qe7 {[%clk 0:02:30.7]} 8. Bg5
{[%clk 0:02:56.6]} 8... h6 {[%clk 0:02:26.5]} 9. Bh4 {[%clk 0:02:56.4]} 9... e5
{[%clk 0:02:26.7]} 10. e3 {[%clk 0:02:50.3]} 10... Bg4 {[%clk 0:02:21.7]} 11.
O-O-O {[%clk 0:02:41]} 11... Nbd7 {[%clk 0:01:59.7]} 12. h3 {[%clk 0:02:36.3]}
12... Bh5 {[%clk 0:01:59.5]} 13. g4 {[%clk 0:02:22.6]} 13... Bg6 {[%clk
0:01:58]} 14. Qb3 {[%clk 0:02:16.6]} 14... exd4 {[%clk 0:01:53.4]} 15. Nxd4
{[%clk 0:02:14.8]} 15... Nc5 {[%clk 0:01:45]} 16. Qa2 {[%clk 0:02:05.5]} 16...
a5 {[%clk 0:01:22.8]} 17. a4 {[%clk 0:01:25.7]} 17... c6 {[%clk 0:01:06.2]} 18.
Bg2 {[%clk 0:01:23.9]} 18... Nd3+ {[%clk 0:00:56.3]} 19. Rxd3 {[%clk 0:01:16.5]}
19... Bxd3 {[%clk 0:00:55.6]} 20. Qb3 {[%clk 0:01:17.4]} 20... Bh7 {[%clk
0:00:46.9]} 21. Re1 {[%clk 0:01:08.3]} 21... Rfe8 {[%clk 0:00:29]} 22. e4 {[%clk
0:01:02.9]} 22... Qe5 {[%clk 0:00:26.9]} 23. Qe3 {[%clk 0:00:42.4]} 23... Nd7
{[%clk 0:00:15]} 24. f4 {[%clk 0:00:34.5]} 24... Qc5 {[%clk 0:00:13.7]} 25. Qc3
{[%clk 0:00:20.1]} 25... b5 {[%clk 0:00:11]} 26. cxb5 {[%clk 0:00:18.1]} 26...
cxb5 {[%clk 0:00:11.9]} 27. Qxc5 {[%clk 0:00:17]} 27... Nxc5 {[%clk 0:00:12.8]}
28. Nxb5 {[%clk 0:00:16.7]} 28... Nxa4 {[%clk 0:00:12.1]} 29. Nxd6 {[%clk
0:00:15.9]} 29... Red8 {[%clk 0:00:11]} 30. e5 {[%clk 0:00:16.2]} 30... Nc5
{[%clk 0:00:10.9]} 31. Bxa8 {[%clk 0:00:15.6]} 31... Rxa8 {[%clk 0:00:10.7]} 32.
Kd2 {[%clk 0:00:15.2]} 32... Rb8 {[%clk 0:00:10.1]} 33. Nc4 {[%clk 0:00:13.9]}
33... Rb4 {[%clk 0:00:09.3]} 34. Nxa5 {[%clk 0:00:11.8]} 34... Rxb2+ {[%clk
0:00:08.7]} 35. Kc3 {[%clk 0:00:12.4]} 35... Rh2 {[%clk 0:00:08.1]} 36. Re3
{[%clk 0:00:09.9]} 36... g5 {[%clk 0:00:05.1]} 37. fxg5 {[%clk 0:00:09.4]} 37...
hxg5 {[%clk 0:00:05.8]} 38. Bxg5 {[%clk 0:00:10]} 38... Nd7 {[%clk 0:00:05.8]}
39. Nc6 {[%clk 0:00:09.3]} 39... Rc2+ {[%clk 0:00:05.8]} 40. Kd4 {[%clk
0:00:09]} 40... Rxc6 {[%clk 0:00:06.7]} 41. h4 {[%clk 0:00:07.8]} 41... Re6
{[%clk 0:00:07]} 42. Bf4 {[%clk 0:00:06.4]} 42... Ra6 {[%clk 0:00:06]} 43. Rc3
{[%clk 0:00:05.7]} 43... Kg7 {[%clk 0:00:04]} 44. h5 {[%clk 0:00:05.6]} 44...
Nf8 {[%clk 0:00:03.9]} 45. Ke3 {[%clk 0:00:04.4]} 45... Ne6 {[%clk 0:00:04]} 46.
Bg3 {[%clk 0:00:05]} 46... Ra4 {[%clk 0:00:04.2]} 47. Kf3 {[%clk 0:00:04.6]}
47... Be4+ {[%clk 0:00:03.8]} 48. Kf2 {[%clk 0:00:04]} 48... Bh1 {[%clk
0:00:03.7]} 49. Bh4 {[%clk 0:00:03]} 49... Rxg4 {[%clk 0:00:03.5]} 50. Bf6+
{[%clk 0:00:03.8]} 50... Kh6 {[%clk 0:00:03]} 51. Rc8 {[%clk 0:00:04.2]} 51...
Be4 {[%clk 0:00:01.5]} 52. Rh8+ {[%clk 0:00:04.2]} 52... Bh7 {[%clk 0:00:01.8]}
53. Be7 {[%clk 0:00:04.8]} 53... Rf4+ {[%clk 0:00:02.2]} 54. Ke3 {[%clk
0:00:04.8]} 54... Rf5 {[%clk 0:00:02.1]} 55. Ke4 {[%clk 0:00:04.8]} 55... Kxh5
{[%clk 0:00:02.8]} 56. Rxh7+ {[%clk 0:00:04.8]} 56... Kg6 {[%clk 0:00:03.5]} 57.
Rh8 {[%clk 0:00:05.3]} 57... Rh5 {[%clk 0:00:03.6]} 58. Kd5 {[%clk 0:00:05.8]}
58... Rxh8 {[%clk 0:00:03.5]} 59. Bf6 {[%clk 0:00:05.6]} 59... Rh7 {[%clk
0:00:04.4]} 60. Kd6 {[%clk 0:00:06.1]} 60... Rh5 {[%clk 0:00:05.3]} 61. Ke7
{[%clk 0:00:07]} 61... Rf5 {[%clk 0:00:05.9]} 62. Kd6 {[%clk 0:00:07.1]} 62...
Kh7 {[%clk 0:00:05.8]} 63. Ke7 {[%clk 0:00:07.4]} 63... Kg8 {[%clk 0:00:06.7]}
64. Ke8 {[%clk 0:00:07.7]} 64... Rf1 {[%clk 0:00:07.3]} 65. Ke7 {[%clk 0:00:08]}
65... Ra1 {[%clk 0:00:08]} 66. Kd7 {[%clk 0:00:08.9]} 66... Ra8 {[%clk
0:00:08.7]} 67. Kd6 {[%clk 0:00:09.8]} 67... Re8 {[%clk 0:00:09.1]} 68. Kd7
{[%clk 0:00:10.1]} 68... Kf8 {[%clk 0:00:09.8]} 69. Bg5 {[%clk 0:00:09.8]} 69...
Ra8 {[%clk 0:00:09.6]} 70. Bh6+ {[%clk 0:00:10.3]} 70... Kg8 {[%clk 0:00:10]}
71. Be3 {[%clk 0:00:11.1]} 71... Ra5 {[%clk 0:00:09.6]} 72. Kd6 {[%clk
0:00:10.3]} 72... Kf8 {[%clk 0:00:08.8]} 73. Bh6+ {[%clk 0:00:10.3]} 73... Ke8
{[%clk 0:00:09.3]} 74. Be3 {[%clk 0:00:11.2]} 74... Ra6+ {[%clk 0:00:07.6]} 75.
Kd5 {[%clk 0:00:11.3]} 75... Kd7 {[%clk 0:00:07.9]} 76. Bf2 {[%clk 0:00:11.8]}
76... Ra4 {[%clk 0:00:08]} 77. Be1 {[%clk 0:00:10.5]} 77... Rd4# {[%clk
0:00:08]} 0-1

[Event "Late-Titled-Tuesday-Blitz-April-16-2024"]
[Site "Chess.com"]
[Date "2024.04.16"]
[Round "1"]
[White "chessisveryfun1264"]
[Black "The_Straightforward_Rook"]
[Result "1/2-1/2"]
[WhiteElo "2741"]
[BlackElo "2424"]
[TimeControl "180+1"]
[EndTime "14:09:01 PDT"]
[Termination "Game drawn by repetition"]

1. e4 {[%clk 0:03:00.9]} 1... e6 {[%clk 0:02:59.6]} 2. d4 {[%clk 0:02:59.4]}
2... d5 {[%clk 0:02:58.7]} 3. Nd2 {[%clk 0:03:00.1]} 3... Nc6 {[%clk 0:02:57.5]}
4. Ngf3 {[%clk 0:02:58.3]} 4... Nf6 {[%clk 0:02:57]} 5. e5 {[%clk 0:02:57.7]}
5... Nd7 {[%clk 0:02:57.5]} 6. Bd3 {[%clk 0:02:56.7]} 6... f6 {[%clk 0:02:52.7]}
7. exf6 {[%clk 0:02:56.1]} 7... Qxf6 {[%clk 0:02:50]} 8. c3 {[%clk 0:02:56.5]}
8... Bd6 {[%clk 0:02:43.2]} 9. O-O {[%clk 0:02:50.7]} 9... O-O {[%clk
0:02:41.9]} 10. Qe2 {[%clk 0:02:50]} 10... e5 {[%clk 0:02:40.8]} 11. dxe5 {[%clk
0:02:49.6]} 11... Ndxe5 {[%clk 0:02:40.2]} 12. Nxe5 {[%clk 0:02:31]} 12... Nxe5
{[%clk 0:02:41.1]} 13. h3 {[%clk 0:02:14.6]} 13... Qf4 {[%clk 0:02:22.7]} 14.
Bc2 {[%clk 0:01:49.3]} 14... Bd7 {[%clk 0:01:59.4]} 15. Kh1 {[%clk 0:01:44.7]}
15... Rae8 {[%clk 0:01:58.6]} 16. Ne4 {[%clk 0:01:39.2]} 16... Qh4 {[%clk
0:01:48.5]} 17. Nxd6 {[%clk 0:01:36.1]} 17... Bxh3 {[%clk 0:01:36.8]} 18. g3
{[%clk 0:01:04.5]} 18... Bxf1+ {[%clk 0:01:30.1]} 19. gxh4 {[%clk 0:01:04.6]}
19... Bxe2 {[%clk 0:01:30.5]} 20. Nxe8 {[%clk 0:01:05.2]} 20... Rxe8 {[%clk
0:01:30.6]} 21. Bf4 {[%clk 0:01:01.1]} 21... Bf3+ {[%clk 0:01:24.8]} 22. Kg1
{[%clk 0:00:59.7]} 22... Be4 {[%clk 0:01:20.7]} 23. Bb3 {[%clk 0:00:49]} 23...
c6 {[%clk 0:01:17.6]} 24. Bg3 {[%clk 0:00:43.8]} 24... Nd3 {[%clk 0:01:12.5]}
25. Kh2 {[%clk 0:00:24.1]} 25... Nxb2 {[%clk 0:01:09.9]} 26. Re1 {[%clk
0:00:24.7]} 26... Nd3 {[%clk 0:01:09.4]} 27. Re3 {[%clk 0:00:25.1]} 27... Bg6
{[%clk 0:01:02.5]} 28. Rf3 {[%clk 0:00:21.6]} 28... Ne5 {[%clk 0:00:57.9]} 29.
Rf4 {[%clk 0:00:22.1]} 29... Nd7 {[%clk 0:00:54]} 30. Rd4 {[%clk 0:00:19.9]}
30... Bf7 {[%clk 0:00:45.1]} 31. Bd1 {[%clk 0:00:18.1]} 31... Nf6 {[%clk
0:00:42.6]} 32. Bf3 {[%clk 0:00:16.9]} 32... Bg6 {[%clk 0:00:41.6]} 33. Rd2
{[%clk 0:00:16.9]} 33... Be4 {[%clk 0:00:39.4]} 34. Be2 {[%clk 0:00:16.4]} 34...
Kf7 {[%clk 0:00:38]} 35. Rb2 {[%clk 0:00:17]} 35... b5 {[%clk 0:00:37.1]} 36. a4
{[%clk 0:00:17.9]} 36... a6 {[%clk 0:00:30.6]} 37. axb5 {[%clk 0:00:17.8]} 37...
axb5 {[%clk 0:00:31.5]} 38. Ra2 {[%clk 0:00:18.4]} 38... Re7 {[%clk 0:00:29.9]}
39. Bd6 {[%clk 0:00:18.6]} 39... Rd7 {[%clk 0:00:29.5]} 40. Bc5 {[%clk
0:00:18.9]} 40... Bf5 {[%clk 0:00:28]} 41. Ra6 {[%clk 0:00:18.7]} 41... Rc7
{[%clk 0:00:21.6]} 42. Bd6 {[%clk 0:00:18.8]} 42... Rc8 {[%clk 0:00:22]} 43.
Ra7+ {[%clk 0:00:18.8]} 43... Kg6 {[%clk 0:00:20.3]} 44. Bc5 {[%clk 0:00:19.4]}
44... Ne4 {[%clk 0:00:20.7]} 45. Bd4 {[%clk 0:00:19.1]} 45... Nf6 {[%clk
0:00:21.1]} 46. Kg3 {[%clk 0:00:17.7]} 46... c5 {[%clk 0:00:21]} 47. Be5 {[%clk
0:00:17.4]} 47... Ne4+ {[%clk 0:00:20.5]} 48. Kg2 {[%clk 0:00:16.7]} 48... Nf6
{[%clk 0:00:21]} 49. f4 {[%clk 0:00:16.9]} 49... Be4+ {[%clk 0:00:21.1]} 50. Kf2
{[%clk 0:00:16.6]} 50... b4 {[%clk 0:00:20.4]} 51. cxb4 {[%clk 0:00:16.9]} 51...
cxb4 {[%clk 0:00:21.3]} 52. Rb7 {[%clk 0:00:17.1]} 52... Rc2 {[%clk 0:00:18.2]}
53. Ke3 {[%clk 0:00:17.2]} 53... Rc1 {[%clk 0:00:14.6]} 54. Rxb4 {[%clk
0:00:17]} 54... Rh1 {[%clk 0:00:14.7]} 55. h5+ {[%clk 0:00:12.9]} 55... Nxh5
{[%clk 0:00:13.9]} 56. Rb7 {[%clk 0:00:12.7]} 56... Nf6 {[%clk 0:00:13.8]} 57.
Rc7 {[%clk 0:00:12.2]} 57... Rh3+ {[%clk 0:00:14.3]} 58. Kd4 {[%clk 0:00:12]}
58... h5 {[%clk 0:00:14.5]} 59. Bb5 {[%clk 0:00:10.7]} 59... Rh2 {[%clk
0:00:14.7]} 60. Ba6 {[%clk 0:00:10.3]} 60... Rd2+ {[%clk 0:00:15.3]} 61. Ke3
{[%clk 0:00:08.9]} 61... Rc2 {[%clk 0:00:16]} 62. Rb7 {[%clk 0:00:09.1]} 62...
Ra2 {[%clk 0:00:15.4]} 63. Ra7 {[%clk 0:00:07.9]} 63... Ng4+ {[%clk 0:00:15.8]}
64. Kd4 {[%clk 0:00:07.8]} 64... Nxe5 {[%clk 0:00:16.7]} 65. Kxe5 {[%clk
0:00:08.4]} 65... Re2 {[%clk 0:00:16.6]} 66. Kd4 {[%clk 0:00:08.2]} 66... h4
{[%clk 0:00:17.1]} 67. Rc7 {[%clk 0:00:08.2]} 67... Rd2+ {[%clk 0:00:17]} 68.
Ke5 {[%clk 0:00:08]} 68... Rd3 {[%clk 0:00:17.9]} 69. Bxd3 {[%clk 0:00:07.9]}
69... Bxd3 {[%clk 0:00:17.4]} 70. Rc6+ {[%clk 0:00:08.4]} 70... Kh5 {[%clk
0:00:16.9]} 71. f5 {[%clk 0:00:08.6]} 71... Be4 {[%clk 0:00:16.7]} 72. Rc3
{[%clk 0:00:08.6]} 72... Kg4 {[%clk 0:00:16.5]} 73. Rc7 {[%clk 0:00:09.2]} 73...
h3 {[%clk 0:00:16.5]} 74. Rxg7+ {[%clk 0:00:09.8]} 74... Kf3 {[%clk 0:00:16.8]}
75. Rh7 {[%clk 0:00:08.7]} 75... Bxf5 {[%clk 0:00:16.5]} 76. Kxf5 {[%clk
0:00:08.3]} 76... Kg2 {[%clk 0:00:17.1]} 77. Rg7+ {[%clk 0:00:08.6]} 77... Kf1
{[%clk 0:00:16.8]} 78. Rh7 {[%clk 0:00:05.7]} 78... Kg2 {[%clk 0:00:16.8]} 79.
Rg7+ {[%clk 0:00:03.6]} 79... Kf3 {[%clk 0:00:17.1]} 80. Rh7 {[%clk 0:00:03.9]}
80... Kg3 {[%clk 0:00:16.8]} 81. Kg5 {[%clk 0:00:04.1]} 81... h2 {[%clk
0:00:16.7]} 82. Kf5 {[%clk 0:00:04.3]} 82... d4 {[%clk 0:00:16.6]} 83. Ke4
{[%clk 0:00:04.6]} 83... Kg2 {[%clk 0:00:16.5]} 84. Rg7+ {[%clk 0:00:05.3]}
84... Kf2 {[%clk 0:00:16.4]} 85. Rf7+ {[%clk 0:00:05.7]} 85... Kg2 {[%clk
0:00:16.9]} 86. Rg7+ {[%clk 0:00:06.1]} 86... Kf2 {[%clk 0:00:17.5]} 87. Rh7
{[%clk 0:00:06.7]} 87... Kg2 {[%clk 0:00:17.9]} 88. Rg7+ {[%clk 0:00:05.6]}
1/2-1/2

[Event "Late-Titled-Tuesday-Blitz-April-16-2024"]
[Site "Chess.com"]
[Date "2024.04.16"]
[Round "1"]
[White "ShahxaibKhan"]
[Black "bascheyaro"]
[Result "0-1"]
[WhiteElo "2454"]
[BlackElo "2828"]
[TimeControl "180+1"]
[EndTime "14:09:08 PDT"]
[Termination "bascheyaro won on time"]

1. e4 {[%clk 0:02:58.7]} 1... e6 {[%clk 0:02:57.6]} 2. d4 {[%clk 0:02:58.3]}
2... d5 {[%clk 0:02:57.7]} 3. Nd2 {[%clk 0:02:59.2]} 3... c5 {[%clk 0:02:57.7]}
4. Ngf3 {[%clk 0:02:59]} 4... Nc6 {[%clk 0:02:58.2]} 5. exd5 {[%clk 0:02:59.2]}
5... exd5 {[%clk 0:02:59.1]} 6. Bb5 {[%clk 0:02:59.1]} 6... c4 {[%clk
0:02:59.5]} 7. O-O {[%clk 0:02:58.4]} 7... Bd6 {[%clk 0:03:00]} 8. b3 {[%clk
0:02:55.5]} 8... cxb3 {[%clk 0:03:00.9]} 9. axb3 {[%clk 0:02:55.2]} 9... Ne7
{[%clk 0:03:01.6]} 10. c4 {[%clk 0:02:55.7]} 10... O-O {[%clk 0:03:01.5]} 11. c5
{[%clk 0:02:54.1]} 11... Bc7 {[%clk 0:03:01.5]} 12. h3 {[%clk 0:02:51.4]} 12...
Bf5 {[%clk 0:03:01.6]} 13. Re1 {[%clk 0:02:47.8]} 13... Nb4 {[%clk 0:03:01.6]}
14. Nh4 {[%clk 0:02:38.9]} 14... Nc2 {[%clk 0:02:38.9]} 15. Nxf5 {[%clk
0:02:29.2]} 15... Nxe1 {[%clk 0:02:38.8]} 16. Ne3 {[%clk 0:02:00.4]} 16... a6
{[%clk 0:02:33.5]} 17. Bf1 {[%clk 0:01:59.6]} 17... Nc6 {[%clk 0:02:33.4]} 18.
Bb2 {[%clk 0:01:52.5]} 18... Nxg2 {[%clk 0:02:29.9]} 19. Nxg2 {[%clk 0:01:49.4]}
19... Qf6 {[%clk 0:02:25.6]} 20. Qf3 {[%clk 0:01:39.5]} 20... Qg5 {[%clk
0:02:18.8]} 21. Qe3 {[%clk 0:01:28.2]} 21... Qd8 {[%clk 0:02:06.8]} 22. Nf3
{[%clk 0:01:27.5]} 22... Re8 {[%clk 0:02:06.5]} 23. Qg5 {[%clk 0:01:23.4]} 23...
Qxg5 {[%clk 0:02:02.1]} 24. Nxg5 {[%clk 0:01:22.9]} 24... f6 {[%clk 0:01:59.5]}
25. Nf3 {[%clk 0:01:20.8]} 25... Rad8 {[%clk 0:01:54.8]} 26. Bc3 {[%clk
0:01:15.2]} 26... Kf7 {[%clk 0:01:53]} 27. Ne3 {[%clk 0:01:14]} 27... Bf4 {[%clk
0:01:52.9]} 28. Ng2 {[%clk 0:01:10.6]} 28... Bh6 {[%clk 0:01:52.5]} 29. Bd3
{[%clk 0:01:10.1]} 29... g6 {[%clk 0:01:52.2]} 30. b4 {[%clk 0:01:07.6]} 30...
Na7 {[%clk 0:01:51.7]} 31. Kf1 {[%clk 0:01:04]} 31... Re6 {[%clk 0:01:51.4]} 32.
Bc2 {[%clk 0:00:55.7]} 32... Nb5 {[%clk 0:01:46.6]} 33. Bb2 {[%clk 0:00:50.3]}
33... Ke7 {[%clk 0:01:46.4]} 34. Bb3 {[%clk 0:00:48.5]} 34... Nc7 {[%clk
0:01:44.5]} 35. Bc1 {[%clk 0:00:44.4]} 35... Bxc1 {[%clk 0:01:37.1]} 36. Rxc1
{[%clk 0:00:45.3]} 36... g5 {[%clk 0:01:37.3]} 37. Ne3 {[%clk 0:00:44]} 37...
Kf7 {[%clk 0:01:37.6]} 38. Nf5 {[%clk 0:00:40.3]} 38... Nb5 {[%clk 0:01:37.3]}
39. Ba4 {[%clk 0:00:35.8]} 39... Kg6 {[%clk 0:01:36]} 40. Bxb5 {[%clk
0:00:31.5]} 40... Kxf5 {[%clk 0:01:35.5]} 41. Bd3+ {[%clk 0:00:32]} 41... Kf4
{[%clk 0:01:35.9]} 42. Kg2 {[%clk 0:00:30.9]} 42... h5 {[%clk 0:01:19.4]} 43.
Rb1 {[%clk 0:00:22.7]} 43... Rde8 {[%clk 0:01:15.8]} 44. Bg6 {[%clk 0:00:20.4]}
44... Rh8 {[%clk 0:01:14.7]} 45. Bf7 {[%clk 0:00:18.1]} 45... Re2 {[%clk
0:01:13]} 46. Bxd5 {[%clk 0:00:17.5]} 46... g4 {[%clk 0:01:13.3]} 47. Ng1 {[%clk
0:00:16.3]} 47... Rd2 {[%clk 0:01:11.9]} 48. Rb3 {[%clk 0:00:13.6]} 48... f5
{[%clk 0:01:10.5]} 49. Re3 {[%clk 0:00:12.5]} 49... h4 {[%clk 0:01:09.5]} 50.
hxg4 {[%clk 0:00:12.5]} 50... fxg4 {[%clk 0:01:07.4]} 51. Ne2+ {[%clk
0:00:12.7]} 51... Kg5 {[%clk 0:01:07.6]} 52. Re5+ {[%clk 0:00:12.8]} 52... Kf6
{[%clk 0:01:08.1]} 53. Re6+ {[%clk 0:00:12.4]} 53... Kg7 {[%clk 0:01:08.1]} 54.
Re7+ {[%clk 0:00:11.5]} 54... Kf8 {[%clk 0:01:08.6]} 55. Re4 {[%clk 0:00:09.3]}
55... Rh7 {[%clk 0:00:49.5]} 56. Bc4 {[%clk 0:00:09.3]} 56... Rg7 {[%clk
0:00:48]} 57. d5 {[%clk 0:00:09.3]} 57... g3 {[%clk 0:00:44.2]} 58. f3 {[%clk
0:00:04.8]} 58... h3+ {[%clk 0:00:44.1]} 59. Kxh3 {[%clk 0:00:05]} 59... g2
{[%clk 0:00:44.7]} 60. Rf4+ {[%clk 0:00:04.8]} 60... Ke7 {[%clk 0:00:44.5]} 61.
Re4+ {[%clk 0:00:04.9]} 61... Kd8 {[%clk 0:00:44.8]} 62. Ng1 {[%clk 0:00:05.5]}
62... Rh7+ {[%clk 0:00:44.6]} 63. Kg3 {[%clk 0:00:05.8]} 63... Rh1 {[%clk
0:00:45]} 64. Re1 {[%clk 0:00:05]} 64... Rd4 {[%clk 0:00:45.4]} 65. Be2 {[%clk
0:00:04.6]} 65... Rxb4 {[%clk 0:00:45.7]} 66. Kxg2 {[%clk 0:00:05]} 66... Rh5
{[%clk 0:00:46]} 67. Rd1 {[%clk 0:00:03.9]} 67... Rg5+ {[%clk 0:00:46.5]} 68.
Kf2 {[%clk 0:00:04.3]} 68... Rb2 {[%clk 0:00:46.9]} 69. Rd3 {[%clk 0:00:04.2]}
69... Re5 {[%clk 0:00:46.7]} 70. Re3 {[%clk 0:00:03.9]} 70... Rxd5 {[%clk
0:00:46.6]} 71. f4 {[%clk 0:00:04.1]} 71... Rxc5 {[%clk 0:00:47]} 72. Nf3 {[%clk
0:00:04.9]} 72... a5 {[%clk 0:00:46.9]} 73. Ne5 {[%clk 0:00:05.5]} 73... Rd5
{[%clk 0:00:45.6]} 74. Nf7+ {[%clk 0:00:05.3]} 74... Kc7 {[%clk 0:00:45.6]} 75.
Ne5 {[%clk 0:00:05.9]} 75... a4 {[%clk 0:00:45.5]} 76. Rc3+ {[%clk 0:00:06.5]}
76... Kb8 {[%clk 0:00:45.4]} 77. Ke3 {[%clk 0:00:07.2]} 77... b5 {[%clk
0:00:44]} 78. Bf3 {[%clk 0:00:07.3]} 78... Rd6 {[%clk 0:00:42.9]} 79. Nc6+
{[%clk 0:00:07.2]} 79... Kb7 {[%clk 0:00:43.5]} 80. Nd4+ {[%clk 0:00:08.1]}
80... Kb6 {[%clk 0:00:43.7]} 81. Nc6 {[%clk 0:00:07.3]} 81... Rb3 {[%clk
0:00:42.6]} 82. Rxb3 {[%clk 0:00:07.5]} 82... axb3 {[%clk 0:00:43.5]} 83. Nd4
{[%clk 0:00:08.4]} 83... b2 {[%clk 0:00:43.5]} 0-1

[Event "Late-Titled-Tuesday-Blitz-April-16-2024"]
[Site "Chess.com"]
[Date "2024.04.16"]
[Round "1"]
[White "ckgchess"]
[Black "momotaro77"]
[Result "1/2-1/2"]
[WhiteElo "2919"]
[BlackElo "2522"]
[TimeControl "180+1"]
[EndTime "14:09:11 PDT"]
[Termination "Game drawn - insufficient material"]

1. c4 {[%clk 0:02:58.6]} 1... e5 {[%clk 0:02:59]} 2. d3 {[%clk 0:02:57]} 2...
Nc6 {[%clk 0:02:59.2]} 3. Nf3 {[%clk 0:02:55.9]} 3... Nf6 {[%clk 0:02:57.1]} 4.
a3 {[%clk 0:02:55.7]} 4... a5 {[%clk 0:02:56.1]} 5. Nc3 {[%clk 0:02:51]} 5... g6
{[%clk 0:02:56.4]} 6. Bg5 {[%clk 0:02:47.6]} 6... Bg7 {[%clk 0:02:56.1]} 7. e3
{[%clk 0:02:44.7]} 7... O-O {[%clk 0:02:55.5]} 8. Be2 {[%clk 0:02:44.8]} 8... d6
{[%clk 0:02:54.7]} 9. O-O {[%clk 0:02:44.6]} 9... h6 {[%clk 0:02:53.6]} 10. Bxf6
{[%clk 0:02:37.6]} 10... Bxf6 {[%clk 0:02:52]} 11. Rb1 {[%clk 0:02:38.5]} 11...
Be6 {[%clk 0:02:48.7]} 12. b4 {[%clk 0:02:38.4]} 12... axb4 {[%clk 0:02:48.3]}
13. axb4 {[%clk 0:02:39.3]} 13... Qd7 {[%clk 0:02:47.6]} 14. b5 {[%clk
0:02:38.5]} 14... Nd8 {[%clk 0:02:47.3]} 15. Nd2 {[%clk 0:02:31]} 15... Bg7
{[%clk 0:02:46.4]} 16. Qc2 {[%clk 0:02:28.5]} 16... f5 {[%clk 0:02:44.4]} 17.
Ra1 {[%clk 0:02:26.7]} 17... Nf7 {[%clk 0:02:41.4]} 18. Bf3 {[%clk 0:02:26.6]}
18... c6 {[%clk 0:02:40]} 19. bxc6 {[%clk 0:02:26.3]} 19... bxc6 {[%clk
0:02:40.9]} 20. Rfb1 {[%clk 0:02:18.9]} 20... d5 {[%clk 0:02:38.9]} 21. cxd5
{[%clk 0:02:17]} 21... cxd5 {[%clk 0:02:39.8]} 22. Rxa8 {[%clk 0:02:14.2]} 22...
Rxa8 {[%clk 0:02:39.9]} 23. Be2 {[%clk 0:01:36.9]} 23... Rc8 {[%clk 0:02:34.1]}
24. Qb2 {[%clk 0:01:34.3]} 24... d4 {[%clk 0:02:28.7]} 25. exd4 {[%clk
0:01:26.9]} 25... Qxd4 {[%clk 0:02:24.6]} 26. Nd1 {[%clk 0:01:19.2]} 26... Qxb2
{[%clk 0:02:16.8]} 27. Rxb2 {[%clk 0:01:17.4]} 27... e4 {[%clk 0:01:55]} 28. Rb6
{[%clk 0:01:17.3]} 28... Rc2 {[%clk 0:01:14.7]} 29. Rxe6 {[%clk 0:00:46]} 29...
Rxd2 {[%clk 0:01:13.8]} 30. Kf1 {[%clk 0:00:46.2]} 30... exd3 {[%clk 0:01:09.3]}
31. Bf3 {[%clk 0:00:46.5]} 31... Ne5 {[%clk 0:01:05]} 32. Ne3 {[%clk 0:00:46.8]}
32... Nxf3 {[%clk 0:00:53.8]} 33. gxf3 {[%clk 0:00:47.7]} 33... Bd4 {[%clk
0:00:51.2]} 34. Rxg6+ {[%clk 0:00:47.6]} 34... Kh7 {[%clk 0:00:39.2]} 35. Rd6
{[%clk 0:00:44.5]} 35... Bxe3 {[%clk 0:00:19.2]} 36. fxe3 {[%clk 0:00:45.4]}
36... h5 {[%clk 0:00:14.8]} 37. h4 {[%clk 0:00:45.1]} 37... Kg7 {[%clk
0:00:13.3]} 38. Ke1 {[%clk 0:00:24]} 38... Re2+ {[%clk 0:00:13.4]} 39. Kf1
{[%clk 0:00:24.7]} 39... Rxe3 {[%clk 0:00:12.8]} 40. Kf2 {[%clk 0:00:25.4]}
40... f4 {[%clk 0:00:11.7]} 41. Rd4 {[%clk 0:00:25.4]} 41... Re2+ {[%clk
0:00:11.7]} 42. Kf1 {[%clk 0:00:25.6]} 42... Rh2 {[%clk 0:00:07.8]} 43. Rxd3
{[%clk 0:00:22.6]} 43... Rxh4 {[%clk 0:00:06.6]} 44. Kg2 {[%clk 0:00:22.8]}
44... Kg6 {[%clk 0:00:06.7]} 45. Rd5 {[%clk 0:00:22.5]} 45... Kh6 {[%clk
0:00:06.1]} 46. Rd6+ {[%clk 0:00:22]} 46... Kg5 {[%clk 0:00:06.4]} 47. Rc6
{[%clk 0:00:22.9]} 47... Kf5 {[%clk 0:00:06.2]} 48. Rb6 {[%clk 0:00:23.5]} 48...
Kg5 {[%clk 0:00:06.4]} 49. Rb8 {[%clk 0:00:23.5]} 49... Kf5 {[%clk 0:00:06.8]}
50. Rg8 {[%clk 0:00:24.4]} 50... Kf6 {[%clk 0:00:07]} 51. Rf8+ {[%clk
0:00:23.8]} 51... Kg5 {[%clk 0:00:07.2]} 52. Rf7 {[%clk 0:00:24.3]} 52... Kg6
{[%clk 0:00:07]} 53. Ra7 {[%clk 0:00:24.7]} 53... Kg5 {[%clk 0:00:07.6]} 54.
Ra5+ {[%clk 0:00:25.6]} 54... Kg6 {[%clk 0:00:08.3]} 55. Rb5 {[%clk 0:00:26.3]}
55... Kh6 {[%clk 0:00:08.6]} 56. Rb4 {[%clk 0:00:23.3]} 56... Kg5 {[%clk
0:00:08.9]} 57. Ra4 {[%clk 0:00:24.2]} 57... Kh6 {[%clk 0:00:09.4]} 58. Kg1
{[%clk 0:00:16.7]} 58... Rh3 {[%clk 0:00:07.2]} 59. Rxf4 {[%clk 0:00:16.7]}
59... Kg5 {[%clk 0:00:07.5]} 60. Rf8 {[%clk 0:00:17.2]} 60... Kh4 {[%clk
0:00:07.3]} 61. Kg2 {[%clk 0:00:16.3]} 61... Rg3+ {[%clk 0:00:07.5]} 62. Kf2
{[%clk 0:00:16.9]} 62... Rg7 {[%clk 0:00:07.3]} 63. Rh8 {[%clk 0:00:13.6]} 63...
Rg5 {[%clk 0:00:06.6]} 64. f4 {[%clk 0:00:12.4]} 64... Rg7 {[%clk 0:00:05.9]}
65. Kf3 {[%clk 0:00:12.7]} 65... Rf7 {[%clk 0:00:06]} 66. Ke4 {[%clk 0:00:12.9]}
66... Kg4 {[%clk 0:00:06.1]} 67. Rg8+ {[%clk 0:00:13]} 67... Kh3 {[%clk
0:00:06.7]} 68. f5 {[%clk 0:00:13.4]} 68... h4 {[%clk 0:00:07]} 69. Ke5 {[%clk
0:00:05.9]} 69... Kh2 {[%clk 0:00:07.3]} 70. Ke6 {[%clk 0:00:05.6]} 70... Ra7
{[%clk 0:00:07]} 71. f6 {[%clk 0:00:06.5]} 71... h3 {[%clk 0:00:06.3]} 72. Rg7
{[%clk 0:00:06.5]} 72... Ra6+ {[%clk 0:00:06.3]} 73. Ke5 {[%clk 0:00:06.9]}
73... Rxf6 {[%clk 0:00:03.7]} 74. Kxf6 {[%clk 0:00:07.8]} 74... Kh1 {[%clk
0:00:04.4]} 75. Kf5 {[%clk 0:00:07.4]} 75... h2 {[%clk 0:00:05.3]} 76. Kg4
{[%clk 0:00:07.7]} 76... Kg2 {[%clk 0:00:04.2]} 77. Kf4+ {[%clk 0:00:08.1]}
77... Kf2 {[%clk 0:00:03.7]} 78. Rh7 {[%clk 0:00:07.1]} 78... Kg2 {[%clk
0:00:03]} 79. Ke3 {[%clk 0:00:07.3]} 79... h1=Q {[%clk 0:00:02.8]} 80. Rxh1
{[%clk 0:00:06.7]} 80... Kxh1 {[%clk 0:00:03.2]} 1/2-1/2